bitfinex-derivatives/quotes_BTCF0:USTF0_20260127
["timestamp","ask_amount","ask_price","bid_price","bid_amount"]
[1769534880920,0.011379,87977.0,87959.0,0.00968239]
[1769534881126,0.10498838,87976.0,87958.0,0.1024]
[1769534881425,0.011379,87975.0,87958.0,0.1024]
[1769534881612,0.00258838,87974.0,87958.0,0.1024]
[1769534884411,0.00258838,87974.0,87953.0,0.00795884]
[1769534884617,0.0091001,87973.0,87953.0,0.00795884]
[1769534884921,0.00258838,87972.0,87953.0,0.00795884]
[1769534885117,0.00258838,87972.0,87954.0,0.00968239]
[1769534885312,0.00258838,87972.0,87955.0,0.00968239]
[1769534886021,0.00258838,87972.0,87957.0,0.00968239]
[1769534886620,0.1024,87972.0,87959.0,0.00968239]
[1769534887120,0.1024,87982.0,87967.0,0.02106239]
[1769534887323,0.00258838,87981.0,87967.0,0.00968239]
[1769534887913,0.011379,87977.0,87958.0,0.00968239]
[1769534888220,0.00258838,87976.0,87958.0,0.00968239]
[1769534888516,0.00258838,87976.0,87953.0,0.00795884]
[1769534888823,0.01138,87973.0,87954.0,0.1024]
[1769534889023,0.00258838,87972.0,87954.0,0.1024]
[1769534889415,0.01138,87969.0,87954.0,0.1024]
[1769534889720,0.00258838,87972.0,87954.0,0.1024]
[1769534889721,0.00258838,87968.0,87954.0,0.1024]
[1769534890112,0.00258838,87968.0,87953.0,0.00795884]
[1769534890418,0.011381,87964.0,87953.0,0.00795884]
[1769534890627,0.00258838,87963.0,87953.0,0.00795884]
[1769534891322,0.0091001,87977.0,87953.0,0.00795884]
[1769534891323,0.0091001,87986.0,87955.0,0.00968239]
[1769534891521,0.011379,87978.0,87960.0,0.00968239]
[1769534891720,0.00086244,87977.0,87962.0,0.00968239]
[1769534891922,0.00086244,87977.0,87963.0,0.00258838]
[1769534892127,0.00086244,87977.0,87963.0,0.01227077]
[1769534892626,0.00086244,87977.0,87964.0,0.011381]
[1769534892828,0.00086244,87977.0,87965.0,0.00258838]
[1769534893027,0.011378,87988.0,87968.0,0.02106239]
[1769534893215,0.10244,87985.0,87970.0,0.01138]
[1769534893417,0.10244,87985.0,87971.0,0.00258838]
[1769534893418,0.011378,87983.0,87971.0,0.00258838]
[1769534893616,0.00086244,87982.0,87971.0,0.00258838]
[1769534894125,0.01224144,87982.0,87972.0,0.00258838]
[1769534894329,0.00086244,87982.0,87972.0,0.00258838]
[1769534894516,0.01224144,87982.0,87972.0,0.00258838]
[1769534894927,0.01224144,87982.0,87964.0,0.00968239]
[1769534895128,0.01224144,87982.0,87965.0,0.00258838]
[1769534896323,0.011379,87980.0,87965.0,0.00258838]
[1769534896630,0.00086244,87979.0,87966.0,0.00968239]
[1769534896828,0.011379,87978.0,87967.0,0.00258838]
[1769534897031,0.00086244,87977.0,87967.0,0.00258838]
[1769534898838,0.0091001,87970.0,87953.0,0.00795884]
[1769534899130,0.0204801,87968.0,87953.0,0.01054722]
[1769534899329,0.011381,87966.0,87953.0,0.01054722]
[1769534899527,0.00086244,87965.0,87953.0,0.01054722]
[1769534900217,0.10244,87972.0,87953.0,0.01054722]
[1769534900422,0.10244,87972.0,87957.0,0.02106439]
[1769534900730,0.011378,87984.0,87964.0,0.00968239]
[1769534900932,0.00086244,87982.0,87966.0,0.00968239]
[1769534901121,0.01224144,87982.0,87967.0,0.01227077]
[1769534901315,0.011379,87980.0,87967.0,0.01227077]
[1769534901629,0.00086244,87979.0,87967.0,0.01227077]
[1769534902132,0.011378,87983.0,87968.0,0.00968239]
[1769534902322,0.01224044,87983.0,87969.0,0.01227077]
[1769534903129,0.00086244,87983.0,87970.0,0.00916634]
[1769534903330,0.00086244,87983.0,87971.0,0.00258838]
[1769534903631,0.011379,87978.0,87963.0,0.11160634]
[1769534903927,0.00086244,87977.0,87964.0,0.00258838]
[1769534905131,0.00919424,87968.0,87953.0,0.00795884]
[1769534905432,0.00919424,87965.0,87953.0,0.00795884]
[1769534905629,0.011381,87960.0,87953.0,0.00795884]
[1769534905829,0.00086244,87959.0,87953.0,0.00795884]
[1769534906130,0.00919424,87975.0,87954.0,0.01168828]
[1769534906337,0.011381,87967.0,87954.0,0.01168828]
[1769534906635,0.00086244,87966.0,87954.0,0.01168828]
[1769534906831,0.01224344,87966.0,87954.0,0.01168828]
[1769534907028,0.00086244,87966.0,87954.0,0.00258838]
[1769534907228,0.011381,87963.0,87954.0,0.00258838]
[1769534907533,0.00086244,87962.0,87954.0,0.00258838]
[1769534907829,0.00086244,87962.0,87946.0,0.00037055]
[1769534907830,0.01005668,87962.0,87946.0,0.00037055]
[1769534908024,0.00919424,87959.0,87937.0,0.10244]
[1769534908218,0.011382,87954.0,87937.0,0.10502838]
[1769534908424,0.00086244,87953.0,87937.0,0.10502838]
[1769534908626,0.00086244,87953.0,87938.0,0.0090999]
[1769534908926,0.00086244,87953.0,87939.0,0.00258838]
[1769534909731,0.00919424,87962.0,87939.0,0.00258838]
[1769534909932,0.011382,87955.0,87939.0,0.00258838]
[1769534910132,0.011382,87958.0,87939.0,0.00258838]
[1769534910433,0.011382,87956.0,87939.0,0.00258838]
[1769534911435,0.011382,87954.0,87939.0,0.00258838]
[1769534911631,0.00919424,87962.0,87934.0,0.0090999]
[1769534911839,0.10244,87963.0,87934.0,0.0090999]
[1769534911840,0.00919424,87957.0,87935.0,0.10244]
[1769534912028,0.00919424,87954.0,87936.0,0.00258838]
[1769534912334,0.011383,87950.0,87936.0,0.00258838]
[1769534913531,0.02057624,87954.0,87936.0,0.00258838]
[1769534913927,0.011382,87952.0,87936.0,0.00258838]
[1769534914729,0.00919424,87954.0,87936.0,0.00258838]
[1769534914930,0.00919424,87951.0,87933.0,0.00011222]
[1769534915136,0.00919424,87951.0,87934.0,0.00258838]
[1769534915840,0.011383,87945.0,87934.0,0.00258838]
[1769534916241,0.011383,87945.0,87933.0,0.00011222]
[1769534916941,0.011383,87948.0,87933.0,0.00011222]
[1769534917144,0.10244,87952.0,87936.0,0.0090999]
[1769534917344,0.10244,87952.0,87937.0,0.01168828]
[1769534917542,0.10244,87952.0,87939.0,0.0204839]
[1769534917743,0.10244,87952.0,87940.0,0.00258838]
[1769534918638,0.00919424,87974.0,87941.0,0.0090999]
[1769534918844,0.00919424,87972.0,87946.0,0.0204829]
[1769534919044,0.00919424,87972.0,87947.0,0.01168828]
[1769534919438,0.00919424,87969.0,87947.0,0.01168828]
[1769534919646,0.10352134,87968.0,87947.0,0.01168828]
[1769534919844,0.10352134,87967.0,87947.0,0.01168828]
[1769534920039,0.10352134,87966.0,87947.0,0.01168828]
[1769534920241,0.10352134,87965.0,87947.0,0.01168828]
[1769534920442,0.10352134,87964.0,87947.0,0.01168828]
[1769534920643,0.10352134,87963.0,87947.0,0.01168828]
[1769534920845,0.00919424,87969.0,87947.0,0.01168828]
[1769534920846,0.011381,87960.0,87947.0,0.01168828]
[1769534921040,0.10352134,87959.0,87947.0,0.01168828]
[1769534921239,0.10352134,87959.0,87947.0,0.00258838]
[1769534921440,0.10352134,87958.0,87947.0,0.01397138]
[1769534921639,0.011381,87966.0,87947.0,0.01397138]
[1769534921840,0.10352384,87965.0,87947.0,0.01397138]
[1769534922040,0.10352384,87964.0,87947.0,0.01397138]
[1769534922242,0.10352384,87963.0,87947.0,0.01397138]
[1769534922441,0.10352384,87962.0,87950.0,0.011383]
[1769534922640,0.10352384,87961.0,87951.0,0.00258838]
[1769534922839,0.10352384,87960.0,87951.0,0.00258838]
[1769534923050,0.011381,87965.0,87951.0,0.00258838]
[1769534923249,0.10353511,87964.0,87951.0,0.00258838]
[1769534923439,0.10353511,87963.0,87951.0,0.00258838]
[1769534923634,0.10353511,87962.0,87951.0,0.00258838]
[1769534923855,0.10353511,87961.0,87951.0,0.00258838]
[1769534924036,0.00919424,87983.0,87960.0,0.011381]
[1769534924248,0.00919424,87983.0,87961.0,0.00258838]
[1769534924546,0.00919424,87989.0,87963.0,0.00709287]
[1769534924745,0.011378,87985.0,87967.0,0.00709287]
[1769534924949,0.011378,87985.0,87968.0,0.00258838]
[1769534925140,0.011379,87982.0,87968.0,0.00258838]
[1769534925543,0.011379,87979.0,87968.0,0.00258838]
[1769534926253,0.011379,87982.0,87968.0,0.00258838]
[1769534926549,0.00919424,87983.0,87968.0,0.00258838]
[1769534926758,0.011377,87991.0,87960.0,0.10244]
[1769534926759,0.01138,87971.0,87960.0,0.10244]
[1769534926943,0.01138,87971.0,87961.0,0.00258838]
[1769534927448,0.01138,87974.0,87961.0,0.00258838]
[1769534927747,0.00919424,87978.0,87961.0,0.00258838]
[1769534927950,0.01138,87975.0,87961.0,0.00258838]
[1769534928251,0.02057324,87978.0,87961.0,0.00258838]
[1769534928451,0.011379,87978.0,87961.0,0.00258838]
[1769534928652,0.00919424,87982.0,87952.0,0.00715252]
[1769534928854,0.00919424,87972.0,87953.0,0.00258838]
[1769534929044,0.011381,87967.0,87953.0,0.00258838]
[1769534929953,0.00919424,87970.0,87953.0,0.00258838]
[1769534930151,0.10244,87978.0,87954.0,0.00715252]
[1769534930452,0.00919424,87977.0,87955.0,0.0097409]
[1769534930657,0.00919424,87977.0,87955.0,0.00258838]
[1769534930846,0.01138,87968.0,87955.0,0.00258838]
[1769534931049,0.02057424,87971.0,87955.0,0.00258838]
[1769534932758,0.00919424,87971.0,87955.0,0.00258838]
[1769534933651,0.02057424,87971.0,87955.0,0.00258838]
[1769534935461,0.01138,87969.0,87955.0,0.00258838]
[1769534936561,0.00919424,87971.0,87955.0,0.00258838]
[1769534937260,0.011379,87976.0,87961.0,0.0073062]
[1769534937461,0.10244,87978.0,87961.0,0.0073062]
[1769534937462,0.01138,87975.0,87962.0,0.00258838]
[1769534938851,0.11206964,87978.0,87962.0,0.00258838]
[1769534939052,0.01138,87975.0,87962.0,0.00258838]
[1769534939456,0.01138,87974.0,87962.0,0.00258838]
[1769534939655,0.01138,87973.0,87962.0,0.00258838]
[1769534940163,0.11206964,87978.0,87940.0,0.00738112]
[1769534940164,0.00962964,87964.0,87940.0,0.00738112]
[1769534940367,0.00962964,87962.0,87945.0,0.011383]
[1769534940658,0.00962964,87962.0,87946.0,0.00258838]
[1769534941458,0.00962964,87962.0,87946.0,0.01397138]
[1769534941852,0.00962964,87962.0,87948.0,0.011383]
[1769534942057,0.00962964,87962.0,87949.0,0.00258838]
[1769534942463,0.01138,87967.0,87951.0,0.011382]
[1769534942667,0.01138,87967.0,87952.0,0.00258838]
[1769534942857,0.00962964,87969.0,87955.0,0.011382]
[1769534943159,0.10244,87972.0,87956.0,0.00258838]
[1769534943758,0.01138,87967.0,87956.0,0.00258838]
[1769534945556,0.00962964,87969.0,87956.0,0.00258838]
[1769534945862,0.00962964,87963.0,87954.0,0.09244]
[1769534946061,0.02101064,87963.0,87948.0,0.10244]
[1769534946256,0.02101064,87963.0,87949.0,0.00258838]
[1769534947356,0.00962964,87963.0,87949.0,0.00258838]
[1769534947753,0.011381,87961.0,87949.0,0.00258838]
[1769534948059,0.011382,87958.0,87940.0,0.0073546]
[1769534948262,0.02101064,87961.0,87941.0,0.00258838]
[1769534948462,0.00962964,87961.0,87945.0,0.011383]
[1769534948665,0.00962964,87969.0,87947.0,0.00919862]
[1769534948865,0.00962964,87969.0,87948.0,0.00258838]
[1769534949256,0.00962964,87969.0,87948.0,0.011787]
[1769534949257,0.00962964,87968.0,87948.0,0.011787]
[1769534949461,0.11206964,87972.0,87949.0,0.00919862]
[1769534949660,0.10983642,87971.0,87950.0,0.011787]
[1769534949857,0.011381,87965.0,87950.0,0.00258838]
[1769534950060,0.00962964,87967.0,87950.0,0.00258838]
[1769534950263,0.011381,87964.0,87950.0,0.00258838]
[1769534950457,0.011381,87964.0,87951.0,0.10244]
[1769534950771,0.011381,87964.0,87952.0,0.00258838]
[1769534951071,0.011381,87962.0,87952.0,0.00258838]
[1769534951267,0.22267616,87991.0,87953.0,0.00919862]
[1769534951569,0.3293456,88006.0,87953.0,0.00919862]
[1769534951570,0.00962964,87980.0,87960.0,0.011381]
[1769534951760,0.00962964,87980.0,87962.0,0.011381]
[1769534951959,0.00962964,87980.0,87963.0,0.10502838]
[1769534952159,0.01100864,87982.0,87963.0,0.10502838]
[1769534952361,0.011378,87985.0,87964.0,0.011381]
[1769534952571,0.011378,87985.0,87966.0,0.011381]
[1769534952864,0.011377,87991.0,87967.0,0.00258838]
[1769534953066,0.011378,87985.0,87967.0,0.00258838]
[1769534953568,0.10244,87994.0,87967.0,0.00258838]
[1769534953763,0.011379,87977.0,87952.0,0.00919862]
[1769534953969,0.011378,87983.0,87964.0,0.00258838]
[1769534954164,0.00962964,87982.0,87964.0,0.00258838]
[1769534954577,0.011378,87988.0,87968.0,0.01138]
[1769534954878,0.00962964,87986.0,87969.0,0.00258838]
[1769534955058,0.10987895,87985.0,87969.0,0.00258838]
[1769534955255,0.11206964,87986.0,87969.0,0.00258838]
[1769534955467,0.10987332,87985.0,87969.0,0.00258838]
[1769534955668,0.11206964,87986.0,87970.0,0.01138]
[1769534955873,0.10987602,87985.0,87971.0,0.00258838]
[1769534956072,0.011378,87985.0,87971.0,0.00258838]
[1769534956275,0.00962964,87985.0,87971.0,0.00258838]
[1769534956574,0.02100864,87979.0,87958.0,0.00919862]
[1769534956764,0.00962964,87979.0,87964.0,0.00258838]
[1769534956965,0.02100864,87979.0,87964.0,0.00258838]
[1769534957273,0.00962964,87979.0,87964.0,0.00258838]
[1769534958572,0.011379,87977.0,87964.0,0.00258838]
[1769534958871,0.011379,87977.0,87958.0,0.00919862]
[1769534958872,0.00962964,87976.0,87958.0,0.00919862]
[1769534959076,0.00962964,87976.0,87959.0,0.00258838]
[1769534959762,0.02100964,87971.0,87953.0,0.40224]
[1769534959959,0.00962964,87969.0,87955.0,0.011382]
[1769534960262,0.00258838,87968.0,87956.0,0.00086282]
[1769534961665,0.01221802,87968.0,87956.0,0.00086282]
[1769534962363,0.00962964,87962.0,87953.0,0.10244]
[1769534962566,0.00258838,87961.0,87953.0,0.08157756]
[1769534963060,0.01396938,87961.0,87953.0,0.08157756]
[1769534963265,0.00996991,87960.0,87953.0,0.06882395]
[1769534963470,0.00258838,87959.0,87953.0,0.06882395]
[1769534963672,0.10244,87973.0,87953.0,0.06882395]
[1769534963873,0.011381,87966.0,87953.0,0.07141233]
[1769534964464,0.10984279,87965.0,87953.0,0.07141233]
[1769534964771,0.10244,87973.0,87953.0,0.07141233]
[1769534964772,0.10984279,87964.0,87953.0,0.07141233]
[1769534964977,0.10984279,87963.0,87953.0,0.07141233]
[1769534965177,0.12122379,87962.0,87953.0,0.07141233]
[1769534965370,0.10244,87968.0,87953.0,0.07141233]
[1769534965675,0.1098358,87967.0,87953.0,0.06882395]
[1769534965871,0.1098358,87966.0,87953.0,0.06882395]
[1769534966173,0.1098358,87965.0,87954.0,0.00258838]
[1769534966377,0.1212168,87964.0,87954.0,0.00258838]
[1769534966572,0.1098358,87963.0,87954.0,0.00258838]
[1769534966773,0.1098358,87962.0,87954.0,0.00258838]
[1769534966966,0.1098358,87961.0,87954.0,0.00258838]
[1769534967167,0.011381,87964.0,87954.0,0.00258838]
[1769534967377,0.10982146,87963.0,87954.0,0.00258838]
[1769534967567,0.10982146,87962.0,87954.0,0.00258838]
[1769534967878,0.11240984,87961.0,87953.0,0.06141233]
[1769534968074,0.00258838,87961.0,87953.0,0.06141233]
[1769534968674,0.011382,87959.0,87953.0,0.06141233]
[1769534968869,0.00258838,87958.0,87953.0,0.06141233]
[1769534970178,0.00258838,87958.0,87943.0,0.01000446]
[1769534970481,0.00258838,87958.0,87944.0,0.00086282]
[1769534970681,0.00258838,87958.0,87945.0,0.00995653]
[1769534970884,0.00258838,87958.0,87946.0,0.00086282]
[1769534971384,0.0001304,87967.0,87946.0,0.02220235]
[1769534971574,0.10993497,87966.0,87946.0,0.02220235]
[1769534971774,0.11239295,87965.0,87946.0,0.02220235]
[1769534971982,0.10980457,87964.0,87948.0,0.011383]
[1769534972178,0.01396938,87963.0,87949.0,0.00086282]
[1769534972484,0.10980457,87962.0,87949.0,0.00086282]
[1769534972681,0.00258838,87963.0,87949.0,0.00086282]
[1769534972989,0.10980021,87962.0,87949.0,0.01224582]
[1769534973193,0.00258838,87961.0,87949.0,0.00086282]
[1769534973683,0.1025704,87966.0,87949.0,0.00086282]
[1769534973895,0.011381,87962.0,87949.0,0.00086282]
[1769534974071,0.011381,87960.0,87949.0,0.00086282]
[1769534974274,7.359e-05,87965.0,87949.0,0.00086282]
[1769534974571,0.00029714,87963.0,87949.0,0.00086282]
[1769534974774,0.00029714,87963.0,87942.0,0.11234095]
[1769534975074,0.011382,87958.0,87943.0,0.00258838]
[1769534976294,0.00029714,87963.0,87943.0,0.01248933]
[1769534976787,0.01185679,87957.0,87943.0,0.00258838]
[1769534976988,0.00258838,87956.0,87944.0,0.00086282]
[1769534977587,0.011382,87955.0,87944.0,0.00086282]
[1769534977785,0.00258838,87954.0,87944.0,0.00086282]
[1769534978786,0.00316227,87954.0,87944.0,0.00086282]
[1769534978989,0.00057389,87953.0,87944.0,0.00086282]
[1769534979192,0.00258838,87952.0,87944.0,0.00086282]
[1769534980280,0.00057389,87959.0,87944.0,0.00086282]
[1769534980592,0.00258838,87958.0,87944.0,0.00086282]
[1769534980980,0.10244,87962.0,87944.0,0.00086282]
[1769534981181,0.10244,87962.0,87944.0,0.02224247]
[1769534981493,0.011381,87961.0,87944.0,0.02224247]
[1769534982292,0.011381,87961.0,87945.0,0.00999665]
[1769534982588,0.011381,87961.0,87946.0,0.00258838]
[1769534982788,0.011382,87959.0,87946.0,0.00258838]
[1769534983290,0.011382,87958.0,87946.0,0.00258838]
[1769534983991,0.00258838,87957.0,87947.0,0.00086282]
[1769534984989,0.00258838,87957.0,87948.0,0.011383]
[1769534985191,0.0074354,87975.0,87951.0,0.011382]
[1769534985387,0.00258838,87969.0,87952.0,0.00086282]
[1769534985691,0.11246941,87968.0,87952.0,0.00086282]
[1769534985897,0.11505779,87967.0,87952.0,0.00086282]
[1769534986089,0.00258838,87967.0,87952.0,0.00086282]
[1769534986594,0.011381,87966.0,87952.0,0.00086282]
[1769534986797,0.01396938,87966.0,87952.0,0.00086282]
[1769534987093,0.011381,87964.0,87952.0,0.00086282]
[1769534987693,0.01396938,87964.0,87952.0,0.00086282]
[1769534987994,0.011381,87962.0,87952.0,0.00086282]
[1769534988193,0.00258838,87961.0,87952.0,0.00086282]
[1769534988404,0.10244,87967.0,87952.0,0.00086282]
[1769534988693,0.011381,87963.0,87952.0,0.00086282]
[1769534991695,0.011381,87965.0,87952.0,0.00086282]
[1769534992090,0.00086282,87964.0,87953.0,0.00258838]
[1769534992893,0.01224382,87964.0,87953.0,0.00258838]
[1769534993191,0.011381,87960.0,87953.0,0.00258838]
[1769534993395,0.00917178,87954.0,87942.0,0.10641238]
[1769534993602,0.01176016,87954.0,87942.0,0.10641238]
[1769534993894,0.00258838,87954.0,87942.0,0.10641238]
[1769534995297,0.011382,87953.0,87942.0,0.09502838]
[1769534995494,0.00258838,87953.0,87942.0,0.09502838]
[1769534996701,0.00910694,87959.0,87943.0,0.02084524]
[1769534996886,0.00258838,87958.0,87943.0,0.02084524]
[1769534997293,0.00258838,87958.0,87945.0,0.011383]
[1769534997498,0.00258838,87958.0,87946.0,0.00946224]
[1769534998999,0.00910694,87942.0,87933.0,0.00011222]
[1769534999197,0.00010312,87941.0,87926.0,0.01287136]
[1769534999387,0.00258838,87940.0,87926.0,0.01287136]
[1769534999797,0.00258838,87940.0,87928.0,0.011386]
[1769535000487,0.00258838,87940.0,87926.0,0.00148536]
[1769535000488,0.00910694,87939.0,87926.0,0.00148536]
[1769535000688,0.00910694,87937.0,87926.0,0.00148536]
[1769535000887,0.00258838,87936.0,87926.0,0.00148536]
[1769535001494,0.00010312,87941.0,87926.0,0.00148536]
[1769535001495,0.00010312,87941.0,87932.0,0.011385]
[1769535001691,0.0026915,87941.0,87929.0,0.011385]
[1769535001891,0.0026915,87941.0,87926.0,0.00148536]
[1769535001892,0.00910694,87938.0,87926.0,0.00148536]
[1769535002197,0.0026915,87941.0,87907.0,0.23819735]
[1769535002198,0.00910694,87929.0,87912.0,0.011388]
[1769535002397,0.00910694,87927.0,87911.0,0.00946224]
[1769535002590,0.01169532,87926.0,87909.0,0.011388]
[1769535002791,0.00910694,87925.0,87909.0,0.011388]
[1769535002991,0.10244,87931.0,87907.0,0.10244]
[1769535002992,0.00169532,87924.0,87907.0,0.10244]
[1769535003200,9.093e-05,87923.0,87913.0,0.00885552]
[1769535003400,0.011384,87943.0,87926.0,0.00946224]
[1769535003595,0.011384,87943.0,87914.0,0.113827]
[1769535003596,0.10244,87950.0,87937.0,0.011384]
[1769535003899,0.10244,87954.0,87941.0,0.00946224]
[1769535004197,0.00255814,87953.0,87942.0,0.00089306]
[1769535005193,0.00255814,87953.0,87942.0,0.0103553]
[1769535005592,0.10244,87957.0,87943.0,0.011384]
[1769535005799,0.30890694,87965.0,87941.0,0.113827]
[1769535005800,0.00910694,87965.0,87949.0,0.011383]
[1769535006100,0.00910694,87971.0,87954.0,0.011382]
[1769535006287,0.00255814,87970.0,87950.0,0.00946224]
[1769535007502,0.00255814,87970.0,87950.0,0.02084524]
[1769535008096,0.00255814,87970.0,87950.0,0.00946224]
[1769535008293,0.00910694,87969.0,87950.0,0.00946224]
[1769535008488,0.00910694,87968.0,87950.0,0.00946224]
[1769535008694,0.00258838,87967.0,87951.0,0.00946224]
[1769535008994,0.00258838,87966.0,87951.0,0.12328924]
[1769535009392,0.00258838,87966.0,87952.0,0.011382]
[1769535009592,0.00258838,87966.0,87951.0,0.00946224]
[1769535009789,0.00910694,87964.0,87952.0,0.113827]
[1769535009995,0.00169532,87963.0,87952.0,0.00089306]
[1769535010704,0.011381,87962.0,87949.0,0.113827]
[1769535010902,0.011381,87960.0,87949.0,0.113827]
[1769535011093,0.00255814,87959.0,87949.0,0.113827]
[1769535012188,0.00829941,87957.0,87949.0,0.00135539]
[1769535012389,0.00255814,87959.0,87913.0,0.00796246]
[1769535012390,4.218e-05,87955.0,87935.0,0.011385]
[1769535012586,4.218e-05,87953.0,87937.0,0.011384]
[1769535012790,4.218e-05,87959.0,87939.0,0.011384]
[1769535013000,0.00260032,87959.0,87941.0,0.02136993]
[1769535013193,0.00255814,87959.0,87946.0,0.02136893]
[1769535013392,0.10244,87962.0,87947.0,0.01087899]
[1769535013592,0.10244,87961.0,87947.0,0.01087899]
[1769535013800,0.10244,87961.0,87948.0,0.00135539]
[1769535014104,0.10244,87961.0,87949.0,0.00258838]
[1769535014497,0.11199956,87960.0,87949.0,0.00258838]
[1769535014706,0.10244,87964.0,87949.0,0.00258838]
[1769535015097,0.011381,87961.0,87949.0,0.00258838]
[1769535015596,0.00860106,87952.0,87934.0,0.10244]
[1769535015798,0.00860106,87952.0,87935.0,0.00258838]
[1769535016102,0.00860106,87952.0,87935.0,0.01205062]
[1769535016404,0.00860106,87952.0,87936.0,0.011384]
[1769535016600,0.00860106,87952.0,87937.0,0.00258838]
[1769535016806,0.011383,87951.0,87937.0,0.00258838]
[1769535017205,0.00860106,87952.0,87937.0,0.00258838]
[1769535017401,0.10104106,87953.0,87937.0,0.00258838]
[1769535017597,0.10104106,87953.0,87934.0,0.10244]
[1769535017908,0.011383,87949.0,87913.0,0.0179324]
[1769535018093,0.011383,87949.0,87919.0,0.00258838]
[1769535018297,0.011384,87942.0,87919.0,0.00258838]
[1769535018498,0.2998,87955.0,87924.0,0.011386]
[1769535018499,0.10244,87941.0,87924.0,0.011386]
[1769535018700,0.011384,87939.0,87925.0,0.00258838]
[1769535018901,0.10244,87938.0,87925.0,0.00258838]
[1769535019204,0.10244,87938.0,87926.0,0.011386]
[1769535019389,0.10244,87938.0,87926.0,0.00258838]
[1769535020901,0.0017256,87937.0,87926.0,0.00086282]
[1769535021500,0.011383,87948.0,87933.0,0.00977002]
[1769535021705,0.00258838,87948.0,87934.0,0.01063284]
[1769535021897,0.00258838,87948.0,87937.0,0.02115402]
[1769535022099,0.00258838,87948.0,87938.0,0.00086282]
[1769535022401,0.00258838,87948.0,87939.0,0.011384]
[1769535022601,0.00258838,87948.0,87940.0,0.00086282]
[1769535022794,0.00258838,87948.0,87936.0,0.011384]
[1769535022998,0.00258838,87948.0,87937.0,0.00086282]
[1769535023906,0.10244,87950.0,87937.0,0.00086282]
[1769535024107,0.011383,87947.0,87937.0,0.00086282]
[1769535024406,0.01291021,87943.0,87928.0,0.011385]
[1769535024605,0.01291021,87943.0,87929.0,0.00258838]
[1769535024806,0.011382,87954.0,87923.0,0.10244]
[1769535024807,0.011385,87935.0,87923.0,0.10244]
[1769535025001,0.01291021,87938.0,87925.0,0.00258838]
[1769535025804,0.011385,87936.0,87925.0,0.00258838]
[1769535026107,0.00152621,87935.0,87923.0,0.10244]
[1769535026301,0.00152621,87935.0,87925.0,0.00258838]
[1769535026502,0.00154559,87942.0,87925.0,0.13188615]
[1769535026804,0.00154559,87942.0,87930.0,0.11791177]
[1769535026999,0.00154559,87942.0,87931.0,0.00258838]
[1769535027400,0.00413397,87942.0,87932.0,0.00086282]
[1769535029311,0.00155856,87955.0,87932.0,0.01034329]
[1769535029510,0.00258838,87943.0,87930.0,0.11791177]
[1769535029812,0.00258838,87943.0,87931.0,0.00086282]
[1769535030811,0.10244,87947.0,87931.0,0.00086282]
[1769535031902,0.011384,87939.0,87931.0,0.00086282]
[1769535032103,0.011385,87929.0,87913.0,0.12178946]
[1769535032309,0.011385,87932.0,87915.0,0.011387]
[1769535032612,0.011387,87921.0,87913.0,0.00638164]
[1769535032907,0.011387,87920.0,87913.0,0.00638164]
[1769535033103,0.011386,87923.0,87913.0,0.00638164]
[1769535033303,0.011386,87924.0,87913.0,0.00638164]
[1769535033706,0.011386,87922.0,87913.0,0.00638164]
[1769535034010,0.011386,87922.0,87906.0,0.00775736]
[1769535034199,0.011386,87922.0,87907.0,0.00258838]
[1769535034405,0.10244,87925.0,87907.0,0.00258838]
[1769535034801,0.011386,87924.0,87907.0,0.00258838]
[1769535035206,0.10244,87925.0,87907.0,0.00258838]
[1769535035403,0.10244,87925.0,87906.0,0.00775736]
[1769535035606,0.11374558,87924.0,87906.0,0.00775736]
[1769535035905,0.011387,87918.0,87906.0,0.00775736]
[1769535036317,0.10244,87925.0,87906.0,0.00775736]
[1769535036612,0.11375011,87924.0,87906.0,3.6e-07]
[1769535036818,0.011387,87914.0,87894.0,0.10248]
[1769535037000,0.011388,87912.0,87895.0,0.00258838]
[1769535037200,0.10248,87913.0,87895.0,0.00258838]
[1769535037703,0.103868,87913.0,87895.0,0.00258838]
[1769535038098,0.09248,87913.0,87895.0,0.01397838]
[1769535038305,0.09248,87913.0,87897.0,0.011389]
[1769535038498,0.09248,87913.0,87898.0,0.00258838]
[1769535040608,0.011388,87911.0,87894.0,0.10248]
[1769535040911,0.011388,87911.0,87895.0,0.00258838]
[1769535041208,0.00258838,87910.0,87895.0,0.00086282]
[1769535041410,0.011388,87909.0,87890.0,0.00011194]
[1769535041608,0.011389,87901.0,87890.0,0.00011194]
[1769535041804,0.00258838,87900.0,87890.0,0.00011194]
[1769535042311,0.011386,87922.0,87900.0,0.011389]
[1769535042515,0.011387,87918.0,87901.0,0.00086282]
[1769535042716,0.21884049,87917.0,87901.0,0.00086282]
[1769535042913,0.00258838,87917.0,87901.0,0.00086282]
[1769535043105,0.10248,87916.0,87901.0,0.00086282]
[1769535043306,0.00258838,87915.0,87901.0,0.00086282]
[1769535043507,0.011387,87914.0,87901.0,0.00086282]
[1769535043702,0.00258838,87913.0,87890.0,0.00011194]
[1769535043928,0.011388,87908.0,87890.0,0.00097476]
[1769535044117,0.00258838,87907.0,87890.0,0.00097476]
[1769535044320,0.011388,87906.0,87890.0,0.00097476]
[1769535044519,0.10506838,87905.0,87890.0,0.00097476]
[1769535044717,0.09506838,87905.0,87890.0,0.00097476]
[1769535044923,0.09506838,87905.0,87891.0,0.01139]
[1769535045106,0.09506838,87905.0,87892.0,0.00258838]
[1769535047614,0.10645738,87905.0,87892.0,0.00258838]
[1769535047815,0.011389,87903.0,87892.0,0.00258838]
[1769535048222,0.011389,87901.0,87892.0,3.024e-05]
[1769535048421,0.00255814,87900.0,87890.0,0.00011194]
[1769535048621,0.00255814,87900.0,87886.0,0.00149025]
[1769535048824,0.00255814,87900.0,87887.0,0.00089306]
[1769535049127,0.011389,87899.0,87886.0,0.00149025]
[1769535049424,0.00255814,87898.0,87886.0,0.00238331]
[1769535049624,0.01152323,87897.0,87886.0,0.00238331]
[1769535049828,0.00255814,87896.0,87886.0,0.00238331]
[1769535051122,0.01394814,87896.0,87886.0,0.00238331]
[1769535051325,0.00255814,87896.0,87873.0,0.03448473]
[1769535051730,0.011391,87885.0,87873.0,0.03448473]
[1769535052019,0.09503814,87884.0,87873.0,0.03448473]
[1769535052215,0.011391,87888.0,87873.0,0.03448473]
[1769535052216,0.10257818,87883.0,87873.0,0.03448473]
[1769535052418,0.00013442,87881.0,87873.0,0.03448473]
[1769535054218,0.10248,87882.0,87873.0,0.01559299]
[1769535054219,0.011392,87879.0,87873.0,0.01559299]
[1769535054418,0.011392,87876.0,87866.0,0.01100598]
[1769535054624,0.10248,87882.0,87866.0,0.01100598]
[1769535054829,0.3,87881.0,87866.0,0.01100598]
[1769535055025,0.3,87881.0,87866.0,0.00100598]